fUST/lending_fUST_20251206
["ID","MTS","AMOUNT","RATE_DAILY","PERIOD"]
[396509321,1765019432654,-230.0,9.726e-05,2]
[396509322,1765019432663,-169.92468389,9.738e-05,2]
[396509323,1765019432672,-480.0,9.831e-05,2]
[396509324,1765019432682,-153.82,9.833e-05,2]
[396509325,1765019432691,-687.84915689,0.00010252,2]
[396509326,1765019432701,-430.12278054,0.00010255,2]
[396509327,1765019432710,-170.85808322,0.00010255,2]
[396509328,1765019432783,230.0,9.629e-05,2]
[396509642,1765019443550,-129.14191678,0.00010255,2]
[396509644,1765019443559,-300.0,0.00010255,2]
[396509645,1765019443568,-205.0,0.00010255,2]
[396509647,1765019443578,-500.0,0.00010255,2]
[396509649,1765019443587,-500.0,0.00010255,2]
[396509651,1765019443597,-1200.0,0.00010255,2]
[396509653,1765019443606,-500.0,0.00010255,2]
[396509655,1765019443616,-500.0,0.00010255,2]
[396509657,1765019443626,-500.0,0.00010255,2]
[396509659,1765019443636,-500.0,0.00010255,2]
[396509661,1765019443646,-500.0,0.00010255,2]
[396509663,1765019443655,-500.0,0.00010255,2]
[396509664,1765019443664,-500.0,0.00010255,2]
[396509665,1765019443673,-500.0,0.00010255,2]
[396509666,1765019443681,-500.0,0.00010255,2]
[396509667,1765019443690,-500.0,0.00010255,2]
[396509668,1765019443699,-500.0,0.00010255,2]
[396509669,1765019443709,-163.75914547,0.00010255,2]
[396509670,1765019443718,-304.19487176,0.00010255,2]
[396509671,1765019443727,-21197.90406599,0.00010256,2]
[396509905,1765019446555,-1513.24810086,0.00010256,2]
[396510114,1765019655288,7726.96675815,9.154e-05,2]
[396510115,1765019655312,10000.01,9.154e-05,2]
[396510116,1765019655333,8754.14990885,9.154e-05,2]
[396510129,1765019882513,155.93024149,9.543e-05,2]
[396510138,1765020026753,309.77516956,9.343e-05,2]
[396510139,1765020039409,539.77516956,9.639e-05,2]
[396510142,1765020062274,230.0,9.639e-05,2]
[396510145,1765020084526,10.37951054,9.639e-05,2]
[396510146,1765020084549,219.62048946,9.639e-05,2]
[396510149,1765020107455,230.0,9.639e-05,2]
[396510150,1765020130301,230.0,9.639e-05,2]
[396510154,1765020153198,230.0,9.639e-05,2]
[396510167,1765020176062,230.0,9.639e-05,2]
[396510169,1765020198316,230.0,9.639e-05,2]
[396510170,1765020220683,230.0,9.639e-05,2]
[396510172,1765020243973,230.0,9.639e-05,2]
[396510173,1765020266988,230.0,9.639e-05,2]
[396510174,1765020291363,230.0,9.639e-05,2]
[396510175,1765020295894,39463.72117751,0.0001311,3]
[396510179,1765020314345,230.0,9.639e-05,2]
[396510181,1765020337198,230.0,9.639e-05,2]
[396510184,1765020360611,230.0,9.639e-05,2]
[396510194,1765020383371,230.0,9.639e-05,2]
[396510198,1765020406390,230.0,9.639e-05,2]
[396510200,1765020428684,230.0,9.639e-05,2]
[396510236,1765020455471,230.0,9.639e-05,2]
[396510260,1765020478498,230.0,9.639e-05,2]
[396510265,1765020500788,230.0,9.639e-05,2]
[396510268,1765020523053,230.0,9.639e-05,2]
[396510269,1765020542528,250.0,0.00013109,3]
[396510270,1765020545947,230.0,9.639e-05,2]
[396510273,1765020568236,230.0,9.639e-05,2]
[396510274,1765020590694,230.0,9.639e-05,2]
[396510278,1765020613605,230.0,9.639e-05,2]
[396510322,1765020632573,-230.0,9.736e-05,2]
[396510323,1765020632582,-181.76619021,9.748e-05,2]
[396510324,1765020632593,-188.23380979,0.00010056,2]
[396510325,1765020632604,-98175.04151756,0.00010056,2]
[396510326,1765020632615,-1410.72508389,0.00010056,2]
[396510327,1765020632637,-841.6034007,0.00010056,2]
[396510328,1765020636341,230.0,9.639e-05,2]
[396510531,1765020643845,-1518.91961997,0.00010056,2]
[396510543,1765020662316,171.35,8.3e-05,2]
[396510544,1765020666586,171.35,9.603e-05,2]
[396510545,1765020675152,171.35,9.603e-05,2]
[396510548,1765020690065,171.35,9.603e-05,2]
[396510553,1765020698875,171.35,9.603e-05,2]
[396510556,1765020714214,171.35,9.603e-05,2]
[396510561,1765020722047,171.35,9.603e-05,2]
[396510562,1765020724981,171.35,8.3e-05,2]
[396510597,1765020785195,171.36,8.3e-05,2]
[396510635,1765020843739,171.35,8.3e-05,2]
[396510654,1765020890763,381.03115194,0.000211,99]
[396510680,1765020938422,472.514,9.657e-05,2]
[396510690,1765020960884,472.514,9.657e-05,2]
[396510707,1765020984090,472.514,9.657e-05,2]
[396510717,1765021006087,472.514,9.657e-05,2]
[396510729,1765021029716,472.514,9.657e-05,2]
[396510735,1765021040986,153.88858452,0.00021,99]
[396510739,1765021052352,184.30951054,9.657e-05,2]
[396510740,1765021052377,288.20448946,9.657e-05,2]
[396510742,1765021057152,4011.64,0.00012999,3]
[396510744,1765021060557,472.514,9.657e-05,2]
[396510756,1765021083715,188.75086641,9.609e-05,2]
[396510763,1765021105750,188.75086641,9.609e-05,2]
[396510773,1765021128350,188.75086641,9.609e-05,2]
[396510785,1765021150980,188.75086641,9.609e-05,2]
[396510794,1765021173334,188.75086641,9.609e-05,2]
[396510806,1765021195377,188.75086641,9.609e-05,2]
[396510814,1765021203894,157.1416418,9.564e-05,2]
[396510821,1765021217553,418.75086641,9.609e-05,2]
[396510830,1765021239710,418.75086641,9.609e-05,2]
[396510841,1765021261837,418.75086641,9.609e-05,2]
[396510849,1765021277875,418.75086641,9.609e-05,2]
[396510853,1765021285767,230.0,9.609e-05,2]
[396510862,1765021301387,230.0,9.609e-05,2]
[396510870,1765021309408,230.0,9.609e-05,2]
[396510888,1765021324878,230.0,9.609e-05,2]
[396510897,1765021332838,230.0,9.609e-05,2]
[396510912,1765021348163,230.0,9.609e-05,2]
[396510926,1765021355929,230.0,9.609e-05,2]
[396510933,1765021371155,230.0,9.609e-05,2]
[396510939,1765021379178,230.0,9.609e-05,2]
[396510947,1765021394428,230.0,9.609e-05,2]
[396510951,1765021402395,230.0,9.609e-05,2]
[396510960,1765021418157,230.0,9.609e-05,2]
[396510964,1765021425937,230.0,9.609e-05,2]
[396510973,1765021441282,230.0,9.609e-05,2]
[396510977,1765021449626,230.0,9.609e-05,2]
[396510982,1765021464861,230.0,9.609e-05,2]
[396510988,1765021472679,230.0,9.609e-05,2]
[396510997,1765021487898,230.0,9.609e-05,2]
[396511004,1765021495733,230.0,9.609e-05,2]
[396511017,1765021511541,230.0,9.609e-05,2]
[396511022,1765021519789,230.0,9.609e-05,2]
[396511035,1765021535339,230.0,9.609e-05,2]
[396511040,1765021543117,230.0,9.609e-05,2]
[396511045,1765021558967,230.0,9.609e-05,2]
[396511047,1765021566836,230.0,9.609e-05,2]
[396511056,1765021582719,230.0,9.609e-05,2]
[396511058,1765021590556,230.0,9.609e-05,2]
[396511061,1765021605747,230.0,9.609e-05,2]
[396511065,1765021614247,230.0,9.609e-05,2]
[396511068,1765021628978,230.0,9.609e-05,2]
[396511074,1765021637851,230.0,9.609e-05,2]
[396511096,1765021653143,230.0,9.609e-05,2]
[396511097,1765021662303,230.0,9.609e-05,2]
[396511098,1765021678031,230.0,9.609e-05,2]
[396511100,1765021685896,230.0,9.609e-05,2]
[396511106,1765021700914,117.86489256,9.609e-05,2]
[396511107,1765021700935,112.13510744,9.609e-05,2]
[396511110,1765021709053,230.0,9.609e-05,2]
[396511111,1765021724397,230.0,9.609e-05,2]
[396511112,1765021732120,230.0,9.609e-05,2]
[396511117,1765021743083,250.0,0.00013108,3]
[396511119,1765021747598,230.0,9.609e-05,2]
[396511122,1765021755994,230.0,9.609e-05,2]
[396511126,1765021771222,230.0,9.609e-05,2]
[396511127,1765021779013,230.0,9.609e-05,2]
[396511152,1765021801984,230.0,9.609e-05,2]
[396511159,1765021825154,230.0,9.609e-05,2]
[396511177,1765021831798,-230.0,9.706e-05,2]
[396511178,1765021831808,-188.75086641,9.731e-05,2]
[396511179,1765021831818,-550.27932552,9.947e-05,2]
[396511180,1765021831827,-300.0,9.954e-05,2]
[396511181,1765021831837,-300.0,9.954e-05,2]
[396511182,1765021831846,-300.0,9.954e-05,2]
[396511183,1765021831855,-1200.0,9.954e-05,2]
[396511184,1765021831865,-500.0,9.955e-05,2]
[396511185,1765021831875,-500.0,9.955e-05,2]
[396511186,1765021831884,-500.0,9.955e-05,2]
[396511187,1765021831893,-500.0,9.955e-05,2]
[396511188,1765021831904,-299.35572468,9.955e-05,2]
[396511189,1765021831913,-500.0,9.955e-05,2]
[396511190,1765021831923,-500.0,9.955e-05,2]
[396511191,1765021831933,-500.0,9.955e-05,2]
[396511192,1765021831942,-500.0,9.955e-05,2]
[396511193,1765021831951,-500.0,9.955e-05,2]
[396511194,1765021831961,-500.0,9.955e-05,2]
[396511195,1765021831970,-383.27098023,9.955e-05,2]
[396511196,1765021831979,-355.72422121,9.955e-05,2]
[396511197,1765021831988,-500.0,9.955e-05,2]
[396511198,1765021831998,-500.0,9.955e-05,2]
[396511199,1765021832007,-250.0,9.955e-05,2]
[396511200,1765021832016,-339.19732837,9.955e-05,2]
[396511201,1765021832026,-500.0,9.955e-05,2]
[396511202,1765021832036,-356.3235714,9.955e-05,2]
[396511203,1765021832045,-500.0,9.955e-05,2]
[396511204,1765021832055,-500.0,9.955e-05,2]
[396511205,1765021832064,-500.0,9.955e-05,2]
[396511206,1765021832073,-500.0,9.955e-05,2]
[396511207,1765021832082,-500.0,9.955e-05,2]
[396511208,1765021832091,-500.0,9.955e-05,2]
[396511209,1765021832100,-500.0,9.955e-05,2]
[396511210,1765021832110,-500.0,9.955e-05,2]
[396511211,1765021832119,-500.0,9.955e-05,2]
[396511212,1765021832128,-500.0,9.955e-05,2]
[396511213,1765021832138,-500.0,9.955e-05,2]
[396511214,1765021832147,-500.0,9.955e-05,2]
[396511215,1765021832156,-500.0,9.955e-05,2]
[396511216,1765021832166,-500.0,9.955e-05,2]
[396511217,1765021832176,-500.0,9.955e-05,2]
[396511218,1765021832185,-500.0,9.955e-05,2]
[396511219,1765021832194,-500.0,9.955e-05,2]
[396511220,1765021832204,-500.0,9.955e-05,2]
[396511221,1765021832213,-500.0,9.955e-05,2]
[396511222,1765021832222,-500.0,9.955e-05,2]
[396511223,1765021832231,-500.0,9.955e-05,2]
[396511224,1765021832241,-500.0,9.955e-05,2]
[396511225,1765021832251,-500.0,9.955e-05,2]
[396511226,1765021832260,-500.0,9.955e-05,2]
[396511227,1765021832269,-500.0,9.955e-05,2]
[396511228,1765021832278,-500.0,9.955e-05,2]
[396511229,1765021832287,-500.0,9.955e-05,2]
[396511230,1765021832427,-500.0,9.955e-05,2]
[396511231,1765021832469,-152.04004308,9.955e-05,2]
[396511232,1765021832479,-500.0,9.955e-05,2]
[396511233,1765021832489,-500.0,9.955e-05,2]
[396511234,1765021832498,-500.0,9.955e-05,2]
[396511235,1765021832507,-500.0,9.955e-05,2]
[396511236,1765021832516,-500.0,9.955e-05,2]
[396511237,1765021832526,-500.0,9.955e-05,2]
[396511238,1765021832535,-500.0,9.955e-05,2]
[396511239,1765021832545,-500.0,9.955e-05,2]
[396511240,1765021832554,-500.0,9.955e-05,2]
[396511241,1765021832564,-500.0,9.955e-05,2]
[396511242,1765021832573,-500.0,9.955e-05,2]
[396511243,1765021832582,-500.0,9.955e-05,2]
[396511244,1765021832594,-500.0,9.955e-05,2]
[396511245,1765021832603,-500.0,9.955e-05,2]
[396511246,1765021832614,-500.0,9.955e-05,2]
[396511247,1765021832623,-500.0,9.955e-05,2]
[396511248,1765021832633,-500.0,9.955e-05,2]
[396511249,1765021832643,-500.0,9.955e-05,2]
[396511250,1765021832652,-500.0,9.955e-05,2]
[396511251,1765021832661,-500.0,9.955e-05,2]
[396511252,1765021832671,-500.0,9.955e-05,2]
[396511253,1765021832680,-500.0,9.955e-05,2]
[396511254,1765021832690,-500.0,9.955e-05,2]
[396511255,1765021832699,-500.0,9.955e-05,2]
[396511256,1765021832709,-500.0,9.955e-05,2]
[396511257,1765021832718,-500.0,9.955e-05,2]
[396511258,1765021832727,-500.0,9.955e-05,2]
[396511259,1765021832736,-500.0,9.955e-05,2]
[396511260,1765021832746,-389.38508845,9.955e-05,2]
[396511261,1765021832755,-500.0,9.955e-05,2]
[396511262,1765021832764,-500.0,9.955e-05,2]
[396511263,1765021832773,-500.0,9.955e-05,2]
[396511264,1765021832782,-500.0,9.955e-05,2]
[396511265,1765021832791,-1200.0,9.955e-05,2]
[396511266,1765021832800,-4963.98810981,9.956e-05,2]
[396511267,1765021832812,-16449.25433404,9.956e-05,2]
[396511268,1765021832823,-8469.92604423,9.956e-05,2]
[396511274,1765021837873,-2752.91582415,9.956e-05,2]
[396511275,1765021837921,-3138.04255411,9.956e-05,2]
[396511276,1765021837980,-2477.25189533,9.956e-05,2]
[396511322,1765021840095,-452.649032,9.956e-05,2]
[396511324,1765021840106,-2638.98908776,9.956e-05,2]
[396511328,1765021840134,-433.33155169,9.956e-05,2]
[396511330,1765021840145,-1540.49800524,9.956e-05,2]
[396511332,1765021840156,-2000.04507,9.956e-05,2]
[396511594,1765021842969,-1135.04524533,9.956e-05,2]
[396511595,1765021842980,-289.54641168,9.956e-05,2]
[396511596,1765021843069,-33650.13717941,9.956e-05,2]
[396511603,1765021847999,-253.7425319,9.956e-05,2]
[396511640,1765022237165,7374.57548686,9.659e-05,2]
[396511641,1765022266409,443.2994057,9.696e-05,2]
[396511642,1765022266432,4510.7005943,9.696e-05,2]
[396511659,1765022522780,160.69,8.3e-05,2]
[396511660,1765022522942,160.69,9.4e-05,2]
[396511679,1765022547465,203.44647683,0.0001312,6]
[396511698,1765022591612,160.7,8.3e-05,2]
[396511731,1765022645758,160.7,8.3e-05,2]
[396511777,1765022703860,165.18,8.3e-05,2]
[396511797,1765022747283,315.03062763,9.457e-05,2]
[396511799,1765022749448,567.05512973,9.457e-05,2]
[396511800,1765022752054,1008.0980084,9.457e-05,2]
[396511802,1765022755121,1573.57798499,9.457e-05,2]
[396511814,1765022764282,165.19,8.3e-05,2]
[396511841,1765022823878,165.18,8.3e-05,2]
[396511883,1765022890973,379.24589529,9.457e-05,2]
[396511884,1765022895403,433.42388033,9.457e-05,2]
[396511885,1765022898797,74.54787933,9.457e-05,2]
[396511886,1765022898821,601.99970888,9.457e-05,2]
[396511902,1765022941758,250.0,0.00013107,3]
[396511944,1765023032218,-166.53917294,9.829e-05,2]
[396511945,1765023032228,-156.46082706,9.829e-05,2]
[396511946,1765023032261,-28.51502202,9.829e-05,2]
[396511947,1765023032271,-231.0,9.829e-05,2]
[396511948,1765023032280,-214.60127943,9.85e-05,2]
[396511955,1765023038083,-285.39872057,9.85e-05,2]
[396511956,1765023038093,-606.66215065,9.85e-05,2]
[396511957,1765023038102,-500.0,9.85e-05,2]
[396511958,1765023038111,-500.0,9.85e-05,2]
[396511959,1765023038121,-500.0,9.85e-05,2]
[396511960,1765023038130,-500.0,9.85e-05,2]
[396511961,1765023038140,-500.0,9.85e-05,2]
[396511962,1765023038151,-500.0,9.85e-05,2]
[396511963,1765023038163,-466.94560131,9.85e-05,2]
[396511964,1765023038175,-33.05439869,9.85e-05,2]
[396511965,1765023038184,-500.0,9.85e-05,2]
[396511966,1765023038193,-500.0,9.85e-05,2]
[396511967,1765023038203,-500.0,9.85e-05,2]
[396511968,1765023038212,-500.0,9.85e-05,2]
[396511969,1765023038221,-499.99999997,9.85e-05,2]
[396511970,1765023038230,-524.71610106,9.85e-05,2]
[396511971,1765023038239,-113.95597908,9.85e-05,2]
[396511978,1765023040345,-297.38125875,9.85e-05,2]
[396511979,1765023040360,-359.97582714,9.85e-05,2]
[396511980,1765023040370,-500.0,9.854e-05,2]
[396511981,1765023040379,-500.0,9.854e-05,2]
[396511982,1765023040389,-500.0,9.854e-05,2]
[396511983,1765023040398,-500.0,9.854e-05,2]
[396511984,1765023040407,-500.0,9.854e-05,2]
[396511985,1765023040417,-266.89333812,9.854e-05,2]
[396511986,1765023040427,-459.98129645,9.854e-05,2]
[396511987,1765023040437,-300.0,9.854e-05,2]
[396511988,1765023040446,-1200.0,9.854e-05,2]
[396511989,1765023040456,-237.43812986,9.855e-05,2]
[396511990,1765023040465,-2038.3337474,9.856e-05,2]
[396512246,1765023043072,-620.51122382,9.856e-05,2]
[396512248,1765023043084,-920.38129747,9.856e-05,2]
[396512254,1765023043128,-1155.4,9.856e-05,2]
[396512266,1765023043235,-11735.6585147,9.856e-05,2]
[396512376,1765023046820,-1466.29674541,9.856e-05,2]
[396512377,1765023051951,-1098.37612677,9.856e-05,2]
[396512750,1765024142682,250.0,0.00013106,3]
[396512773,1765024232122,-300.0,9.753e-05,2]
[396512774,1765024232132,-436.08130421,9.753e-05,2]
[396512812,1765024285133,416.91869579,9.655e-05,2]
[396512813,1765024286858,151.0,9.956e-05,3]
[396512814,1765024287181,151.0,9.956e-05,3]
[396512815,1765024287790,151.0,9.956e-05,3]
[396512816,1765024288589,151.0,9.956e-05,3]
[396512817,1765024288683,151.0,9.956e-05,3]
[396512818,1765024288763,151.0,9.956e-05,3]
[396512819,1765024288991,151.0,9.956e-05,3]
[396512820,1765024289271,151.0,9.956e-05,3]
[396512821,1765024289559,151.0,9.956e-05,3]
[396512822,1765024289873,151.0,9.956e-05,3]
[396512823,1765024290124,151.0,9.956e-05,3]
[396512824,1765024290686,151.0,9.956e-05,3]
[396512825,1765024290906,151.0,9.956e-05,3]
[396512826,1765024291010,151.0,9.956e-05,3]
[396512827,1765024291301,151.0,9.956e-05,3]
[396512828,1765024291610,151.0,9.956e-05,3]
[396512829,1765024291952,151.0,9.956e-05,3]
[396512830,1765024292551,151.0,9.956e-05,3]
[396512831,1765024292831,151.750918,9.956e-05,3]
[396512835,1765024307938,416.91869579,9.655e-05,2]
[396512837,1765024330755,416.91869579,9.655e-05,2]
[396512841,1765024353247,416.91869579,9.655e-05,2]
[396512846,1765024375742,416.91869579,9.655e-05,2]
[396512865,1765024398552,416.91869579,9.655e-05,2]
[396512877,1765024420824,602.90487369,9.655e-05,2]
[396512889,1765024443149,602.90487369,9.655e-05,2]
[396512920,1765024465913,602.90487369,9.655e-05,2]
[396512928,1765024488449,602.90487369,9.655e-05,2]
[396512929,1765024512938,185.9861779,9.655e-05,2]
[396512935,1765024537824,185.9861779,9.655e-05,2]
[396512944,1765024560733,185.9861779,9.655e-05,2]
[396512951,1765024583404,485.9861779,9.655e-05,2]
[396512953,1765024606224,485.9861779,9.655e-05,2]
[396512964,1765024628164,485.9861779,9.655e-05,2]
[396513001,1765024640833,6175.37831153,9.654e-05,2]
[396513002,1765024640862,10000.01,9.654e-05,2]
[396513003,1765024640890,10000.01,9.654e-05,2]
[396513005,1765024640920,10000.01,9.654e-05,2]
[396513006,1765024640948,10000.01,9.654e-05,2]
[396513007,1765024640976,10000.01,9.654e-05,2]
[396513008,1765024641005,10000.01,9.654e-05,2]
[396513009,1765024641030,10000.01,9.654e-05,2]
[396513010,1765024641059,10000.01,9.654e-05,2]
[396513011,1765024641085,10000.01,9.654e-05,2]
[396513014,1765024643361,-177.19317001,9.654e-05,2]
[396513015,1765024645130,-722.51394674,9.654e-05,2]
[396513016,1765024646439,-1431.2800568,9.654e-05,2]
[396513017,1765024646622,-167.34168605,9.654e-05,2]
[396513018,1765024648781,-292.48393823,9.654e-05,2]
[396513019,1765024648798,-10000.01,9.654e-05,2]
[396513020,1765024648921,-10000.01,9.654e-05,2]
[396513021,1765024649052,-10000.01,9.654e-05,2]
[396513022,1765024649160,-10000.01,9.654e-05,2]
[396513023,1765024649283,-10000.01,9.654e-05,2]
[396513024,1765024649420,-10000.01,9.654e-05,2]
[396513025,1765024649614,-10000.01,9.654e-05,2]
[396513026,1765024649748,-10000.01,9.654e-05,2]
[396513027,1765024649940,-10000.01,9.654e-05,2]
[396513028,1765024650053,-10000.01,9.654e-05,2]
[396513029,1765024650185,-10000.01,9.654e-05,2]
[396513030,1765024650308,-10000.01,9.654e-05,2]
[396513031,1765024650585,-10000.01,9.654e-05,2]
[396513032,1765024650711,-10000.01,9.654e-05,2]
[396513033,1765024650739,-10000.01,9.654e-05,2]
[396513034,1765024653565,-228.37652856,9.557e-05,2]
[396513035,1765024655064,-533.99820979,9.557e-05,2]
[396513036,1765024655117,-8932.01358042,9.654e-05,2]
[396513037,1765024655151,-171.74163136,9.654e-05,2]
[396513038,1765024655448,-10000.01,9.654e-05,2]
[396513039,1765024655471,-10000.01,9.654e-05,2]
[396513040,1765024655495,-10000.01,9.654e-05,2]
[396513041,1765024655563,-10000.01,9.654e-05,2]
[396513042,1765024655687,-10000.01,9.654e-05,2]
[396513043,1765024655803,-10000.01,9.654e-05,2]
[396513044,1765024655912,-10000.01,9.654e-05,2]
[396513045,1765024656065,-10000.01,9.654e-05,2]
[396513046,1765024656207,-10000.01,9.654e-05,2]
[396513047,1765024656345,-10000.01,9.654e-05,2]
[396513048,1765024656408,-10000.01,9.654e-05,2]
[396513049,1765024656515,-10000.01,9.654e-05,2]
[396513050,1765024656637,-10000.01,9.654e-05,2]
[396513051,1765024656738,-10000.01,9.654e-05,2]
[396513052,1765024686157,-152.03,8.3e-05,2]
[396513053,1765024686186,-122.65013473,8.4e-05,2]
[396513054,1765024689090,-29.37986527,8.4e-05,2]
[396513055,1765024689114,-152.03,8.6e-05,2]
[396513056,1765024689141,-93.73573538,8.8e-05,2]
[396513057,1765024693034,-58.29426462,8.8e-05,2]
[396513058,1765024693060,-94.17669127,8.9e-05,2]
[396513059,1765024718993,-57.85330873,8.9e-05,2]
[396513060,1765024719024,-152.03,9.1e-05,2]
[396513061,1765024719054,-152.03,9.3e-05,2]
[396513062,1765024719083,-152.03,9.4e-05,2]
[396513063,1765024719113,-2345.13397678,9.461e-05,2]
[396513064,1765024719246,-4281.85542898,9.461e-05,2]
[396513065,1765024719491,-170.99444854,9.545e-05,2]
[396513066,1765024719519,-217.77569961,9.556e-05,2]
[396513067,1765024719547,-2470.53692391,9.557e-05,2]
[396513068,1765024719604,-4281.39585588,9.557e-05,2]
[396513069,1765024719633,-152.03,9.6e-05,2]
[396513070,1765024719659,-458.21094303,9.653e-05,2]
[396513071,1765024719687,-50.52971128,9.653e-05,2]
[396513072,1765024719784,-115.67697962,9.653e-05,2]
[396513073,1765024719812,-300.0,9.653e-05,2]
[396513074,1765024720972,-308.52904411,9.654e-05,2]
[396513075,1765024724135,-194.99543626,9.654e-05,2]
[396513076,1765024725703,-281.43535408,9.654e-05,2]
[396513077,1765024726352,9168.65604076,9.557e-05,2]
[396513078,1765024726377,1640.23000587,9.557e-05,2]
[396513079,1765024727302,-151.00865929,9.654e-05,2]
[396513080,1765024734758,4362.54750155,9.557e-05,2]
[396513081,1765024735893,-268.9381939,9.654e-05,2]
[396513082,1765024740097,-238.95557108,9.654e-05,2]
[396513083,1765024742724,300.0,9.653e-05,2]
[396513084,1765024742771,-221.97975173,9.654e-05,2]
[396513085,1765024743560,3697.23249258,9.557e-05,2]
[396513086,1765024743582,10000.01,9.557e-05,2]
[396513087,1765024743605,1614.54539747,9.557e-05,2]
[396513088,1765024744753,-164.75396792,9.654e-05,2]
[396513089,1765024745850,-259.52644548,9.654e-05,2]
[396513090,1765024751332,1267.45,8.3e-05,2]
[396513091,1765024751529,1098.43409476,9.557e-05,2]
[396513092,1765024751652,1267.45,8.4e-05,2]
[396513093,1765024752052,-559.82432427,9.654e-05,2]
[396513094,1765024752161,1267.45,8.5e-05,2]
[396513095,1765024752452,1267.45,8.6e-05,2]
[396513096,1765024752809,1267.45,8.7e-05,2]
[396513097,1765024753907,949.78050777,8.8e-05,2]
[396513098,1765024753931,317.66949223,8.8e-05,2]
[396513099,1765024754296,1267.45,9e-05,2]
[396513100,1765024754608,1267.45,9.1e-05,2]
[396513101,1765024755391,1267.45,9.2e-05,2]
[396513102,1765024755450,1267.45,9.3e-05,2]
[396513103,1765024755576,1267.45,9.4e-05,2]
[396513104,1765024755610,150.0,7.39e-05,2]
[396513105,1765024755753,1267.45,9.5e-05,2]
[396513106,1765024755880,179.8,8.062e-05,2]
[396513107,1765024756302,269.7,8.734e-05,2]
[396513108,1765024756730,359.59,9.406e-05,2]
[396513109,1765024757644,-278.28527676,9.654e-05,2]
[396513110,1765024759778,-162.62681283,9.654e-05,2]
[396513111,1765024767272,1118.55050777,9.557e-05,2]
[396513112,1765024767296,5171.22466179,9.557e-05,2]
[396513113,1765024767753,-207.63960312,9.654e-05,2]
[396513114,1765024770516,1267.22,8.251e-05,2]
[396513115,1765024772089,-721.12312739,9.654e-05,2]
[396513116,1765024775168,514.05,9.557e-05,2]
[396513117,1765024777488,-248.33166061,9.654e-05,2]
[396513118,1765024780293,-218.56464592,9.654e-05,2]
[396513119,1765024780848,500.0,9.556e-05,2]
[396513120,1765024780888,500.0,9.556e-05,2]
[396513121,1765024781267,500.0,9.556e-05,2]
[396513122,1765024781300,500.0,9.556e-05,2]
[396513123,1765024781342,500.0,9.556e-05,2]
[396513124,1765024781384,156.13781795,9.556e-05,2]
[396513125,1765024781417,391.37752026,9.556e-05,2]
[396513126,1765024781441,108.62247974,9.556e-05,2]
[396513127,1765024781472,500.0,9.556e-05,2]
[396513128,1765024781526,484.41236155,9.556e-05,2]
[396513129,1765024781560,500.0,9.556e-05,2]
[396513130,1765024782369,-155.76528857,9.654e-05,2]
[396513131,1765024783185,3349.134,9.557e-05,2]
[396513132,1765024784145,-354.55355527,9.654e-05,2]
[396513133,1765024787522,500.0,9.556e-05,2]
[396513134,1765024787564,500.0,9.556e-05,2]
[396513135,1765024787624,500.0,9.556e-05,2]
[396513136,1765024787664,500.0,9.556e-05,2]
[396513137,1765024787697,500.0,9.556e-05,2]
[396513138,1765024787738,500.0,9.556e-05,2]
[396513139,1765024787801,500.0,9.556e-05,2]
[396513140,1765024787910,500.0,9.556e-05,2]
[396513141,1765024787992,636.83810441,9.556e-05,2]
[396513142,1765024788025,421.0030543,9.556e-05,2]
[396513143,1765024788048,78.9969457,9.556e-05,2]
[396513144,1765024788079,500.0,9.556e-05,2]
[396513145,1765024788118,500.0,9.556e-05,2]
[396513146,1765024788453,-545.40940357,9.654e-05,2]
[396513147,1765024789985,-212.74402909,9.654e-05,2]
[396513148,1765024791103,2796.26833205,9.557e-05,2]
[396513149,1765024794214,-268.9381939,9.654e-05,2]
[396513150,1765024796975,-161.36012214,9.654e-05,2]